bitfinex-derivatives/quotes_BTCF0:USTF0_20250901
["timestamp","ask_amount","ask_price","bid_price","bid_amount"]
[1756730776682,0.005,109100.0,109090.0,2.21566911]
[1756730776877,0.005,109100.0,109090.0,2.30733611]
[1756730777484,0.002,109100.0,109090.0,2.30733611]
[1756730778492,0.002,109100.0,109090.0,2.31191611]
[1756730778786,0.002,109100.0,109090.0,1.37944911]
[1756730779090,0.002,109100.0,109090.0,2.22140911]
[1756730779891,0.002,109100.0,109090.0,2.22120911]
[1756730780987,0.002,109100.0,109090.0,1.37944911]
[1756730781187,0.002,109100.0,109090.0,1.92147594]
[1756730781389,0.002,109100.0,109090.0,2.22108911]
[1756730787502,0.002,109100.0,109090.0,2.31275611]
[1756730787801,0.002,109100.0,109090.0,2.01314294]
[1756730787997,0.002,109100.0,109090.0,2.31275611]
[1756730788796,0.002,109100.0,109090.0,1.97308911]
[1756730790007,0.04848,109100.0,109090.0,1.67403594]
[1756730790302,0.04848,109100.0,109090.0,1.91368025]
[1756730790802,0.04648,109100.0,109090.0,1.91568025]
[1756730792200,0.04648,109100.0,109090.0,1.07348025]
[1756730792396,0.08068,109100.0,109090.0,1.91560025]
[1756730794202,0.02354,109100.0,109090.0,1.91560025]
[1756730794704,0.08068,109110.0,109100.0,0.08483]
[1756730794901,0.08068,109110.0,109100.0,0.43483]
[1756730795907,0.32032431,109110.0,109100.0,0.39901]
[1756730796101,0.32032431,109110.0,109100.0,0.4343]
[1756730796812,0.08068,109110.0,109100.0,0.4343]
[1756730797911,0.08068,109110.0,109100.0,0.4353]
[1756730799108,0.32032431,109110.0,109100.0,0.4353]
[1756730802006,0.32032431,109110.0,109100.0,0.7961]
[1756730802512,0.32266431,109120.0,109110.0,0.0833]
[1756730802815,0.08302,109120.0,109110.0,0.44868]
[1756730803012,0.08302,109120.0,109110.0,1.00832431]
[1756730803604,0.08302,109120.0,109110.0,1.08238534]
[1756730804310,0.0478,109120.0,109110.0,1.08238534]
[1756730804618,0.0478,109120.0,109110.0,0.84274103]
[1756730804812,0.08302,109120.0,109110.0,0.84274103]
[1756730805612,0.02451,109120.0,109110.0,0.86278903]
[1756730805921,0.0478,109120.0,109110.0,1.10243334]
[1756730806513,0.08302,109120.0,109110.0,1.10243334]
[1756730807116,0.08302,109120.0,109110.0,0.86278903]
[1756730807316,0.02451,109120.0,109110.0,0.86278903]
[1756730807713,0.02451,109120.0,109110.0,1.10243334]
[1756730808315,0.68346431,109130.0,109120.0,0.03429]
[1756730808620,1.07382224,109130.0,109120.0,0.0833]
[1756730809421,0.08302,109120.0,109110.0,0.18198903]
[1756730809713,2.1458673,109120.0,109110.0,0.00458]
[1756730809919,2.3958688,109120.0,109110.0,0.00458]
[1756730810114,0.01393,109100.0,109090.0,0.05372594]
[1756730810319,1.91995431,109100.0,109090.0,0.02021539]
[1756730810525,1.94031379,109100.0,109090.0,0.02021539]
[1756730810714,2.30111379,109100.0,109090.0,0.02021539]
[1756730811117,2.28075431,109100.0,109090.0,0.02021539]
[1756730811319,1.90075431,109100.0,109090.0,0.06922539]
[1756730812526,1.90075431,109100.0,109090.0,0.02221539]
[1756730812926,1.90075431,109100.0,109090.0,0.04640539]
[1756730813223,1.90075431,109100.0,109090.0,0.04840539]
[1756730813524,1.05819431,109100.0,109090.0,0.04840539]
[1756730813825,1.90075431,109100.0,109090.0,0.04840539]
[1756730815822,1.90075431,109100.0,109090.0,0.02421539]
[1756730816522,2.27075431,109100.0,109090.0,0.02421539]
[1756730816726,2.52075431,109100.0,109090.0,0.02421539]
[1756730819021,2.52075431,109100.0,109070.0,0.38109468]
[1756730819223,0.32266431,109080.0,109070.0,0.38109468]
[1756730819428,1.16470431,109080.0,109070.0,0.43010468]
[1756730819823,1.16470431,109080.0,109070.0,0.46439468]
[1756730820226,1.16470431,109080.0,109070.0,0.46639468]
[1756730820423,0.32266431,109080.0,109070.0,0.47552616]
[1756730820617,0.02451,109080.0,109070.0,0.47752616]
[1756730820930,0.02451,109080.0,109070.0,1.07517047]
[1756730821225,0.02451,109080.0,109070.0,1.07717047]
[1756730821728,1.23842,109090.0,109080.0,0.03429]
[1756730821929,0.92542,109090.0,109080.0,0.0833]
[1756730822531,1.28622,109090.0,109080.0,0.0833]
[1756730822730,1.52586431,109090.0,109080.0,0.0833]
[1756730823228,1.52686431,109090.0,109080.0,0.0833]
[1756730823529,1.16606431,109090.0,109080.0,0.0833]
[1756730823728,1.52686431,109090.0,109080.0,0.0833]
[1756730824237,1.16606431,109090.0,109080.0,0.04901]
[1756730824725,1.52686431,109090.0,109080.0,0.08514]
[1756730825530,1.16606431,109090.0,109080.0,0.08514]
[1756730827031,1.52686431,109090.0,109080.0,0.08514]
[1756730827431,1.52686431,109090.0,109080.0,0.04901]
[1756730827631,0.0827,109080.0,109070.0,0.07866616]
[1756730827936,0.68314431,109080.0,109070.0,0.07866616]
[1756730828832,0.03441,109070.0,109060.0,0.45097488]
[1756730829039,0.92454,109070.0,109060.0,0.41004]
[1756730829331,0.02361,109070.0,109060.0,1.31581431]
[1756730829535,0.9247,109080.0,109070.0,0.08537]
[1756730829737,0.0827,109080.0,109070.0,1.06681431]
[1756730830036,0.0827,109080.0,109070.0,1.0761973]
[1756730830223,0.68314431,109080.0,109070.0,0.001]
[1756730830421,0.03441,109070.0,109050.0,0.53607711]
[1756730830627,0.0827,109060.0,109050.0,0.59451711]
[1756730831334,0.0827,109060.0,109050.0,0.52889223]
[1756730831737,0.0827,109060.0,109050.0,0.53289223]
[1756730832034,0.0827,109060.0,109050.0,0.59851711]
[1756730832336,0.0827,109080.0,109070.0,0.08537]
[1756730832635,0.04829,109080.0,109070.0,1.05581431]
[1756730832838,0.02361,109080.0,109070.0,1.05681431]
[1756730833739,0.0827,109080.0,109070.0,0.45637]
[1756730834038,0.32234431,109080.0,109070.0,0.45637]
[1756730834334,0.63485431,109090.0,109070.0,0.68681431]
[1756730834640,0.04829,109090.0,109080.0,0.44617]
[1756730834843,0.04829,109090.0,109080.0,0.68581431]
[1756730834844,0.0827,109090.0,109080.0,0.68581431]
[1756730835034,0.0827,109090.0,109080.0,0.44617]
[1756730835337,0.0827,109090.0,109080.0,1.04581431]
[1756730835539,0.0827,109090.0,109080.0,0.80617]
[1756730835723,0.0827,109090.0,109080.0,1.06596037]
[1756730838233,0.0827,109090.0,109080.0,0.82631606]
[1756730838432,0.0827,109090.0,109080.0,1.06596037]
[1756730839244,0.0827,109090.0,109080.0,1.13158525]
[1756730841134,0.04829,109090.0,109080.0,1.13158525]
[1756730841344,0.04829,109090.0,109080.0,1.06596037]
[1756730841639,0.04829,109090.0,109080.0,1.13158525]
[1756730842142,1.93708,109110.0,109100.0,0.06288]
[1756730842143,0.84448,109110.0,109100.0,0.06288]
[1756730842441,0.40909,109120.0,109110.0,0.08537]
[1756730842740,0.4435,109120.0,109110.0,0.08537]
[1756730842936,0.68314431,109120.0,109110.0,0.08537]
[1756730843940,0.32234431,109120.0,109110.0,0.09453805]
[1756730844131,0.0827,109120.0,109110.0,0.09453805]
[1756730844532,0.0837,109120.0,109110.0,0.09453805]
[1756730844838,0.4445,109120.0,109110.0,0.09453805]
[1756730845039,0.0857,109120.0,109110.0,0.09453805]
[1756730845240,0.4465,109120.0,109110.0,0.09453805]
[1756730845740,0.0857,109120.0,109110.0,0.09453805]
[1756730845932,0.4465,109120.0,109110.0,0.08537]
[1756730846131,0.32534431,109120.0,109110.0,0.08537]
[1756730846328,0.68614431,109120.0,109110.0,0.08537]
[1756730847228,0.32534431,109120.0,109110.0,0.08537]
[1756730847434,0.32534431,109120.0,109110.0,0.09441914]
[1756730847634,0.68614431,109120.0,109110.0,0.09441914]
[1756730847834,0.32534431,109120.0,109110.0,0.09441914]
[1756730848137,0.68614431,109120.0,109110.0,0.09441914]
[1756730848536,0.68614431,109120.0,109110.0,0.08537]
[1756730848735,0.68614431,109120.0,109110.0,0.16031072]
[1756730849438,0.68614431,109120.0,109110.0,0.08537]
[1756730849740,0.0827,109110.0,109100.0,0.04491765]
[1756730849942,1.52922431,109110.0,109100.0,0.02036765]
[1756730850934,1.28958,109110.0,109100.0,0.10573765]
[1756730851241,1.52922431,109110.0,109100.0,0.06960765]
[1756730852735,0.0827,109110.0,109100.0,0.10573765]
[1756730852942,0.82106,109110.0,109100.0,0.34538196]
[1756730853839,0.0827,109110.0,109100.0,0.66538196]
[1756730854045,0.0827,109110.0,109100.0,1.02618196]
[1756730857249,0.04829,109110.0,109100.0,1.27618196]
[1756730857449,0.4443,109120.0,109110.0,0.03748]
[1756730857644,0.92938,109120.0,109110.0,0.44485]
[1756730857844,0.92938,109120.0,109110.0,0.08405]
[1756730858652,0.93138,109120.0,109110.0,0.08405]
[1756730858951,0.93238,109120.0,109110.0,0.08405]
[1756730860147,0.93238,109120.0,109110.0,0.32369431]
[1756730860445,0.93238,109120.0,109110.0,0.08405]
[1756730861150,0.93238,109120.0,109110.0,0.44485]
[1756730861346,1.29318,109120.0,109110.0,0.08405]
[1756730861553,0.93238,109120.0,109110.0,0.08405]
[1756730862257,0.0835,109110.0,109100.0,0.70486196]
[1756730862444,0.0835,109110.0,109100.0,0.79521765]
[1756730862752,0.32314431,109110.0,109100.0,0.79521765]
[1756730863748,0.92358862,109110.0,109100.0,0.02036765]
[1756730863950,0.68394431,109110.0,109100.0,0.02036765]
[1756730865550,0.68394431,109110.0,109100.0,0.04357765]
[1756730865752,0.68394431,109110.0,109100.0,0.06693765]
[1756730866050,0.68394431,109110.0,109100.0,0.04357765]
[1756730866550,0.68394431,109110.0,109100.0,0.02036765]
[1756730866551,0.93394431,109110.0,109100.0,0.02036765]
[1756730866753,1.17358862,109110.0,109100.0,0.02036765]
[1756730866953,0.93394431,109110.0,109100.0,0.02036765]
[1756730868653,1.19387273,109110.0,109100.0,0.02036765]
[1756730868850,0.71458411,109110.0,109100.0,0.02036765]
[1756730869055,1.19387273,109110.0,109100.0,0.02036765]
[1756730871152,0.0835,109090.0,109080.0,0.06671606]
[1756730871353,0.4443,109090.0,109080.0,0.37671606]
[1756730871555,0.0835,109090.0,109080.0,0.41419606]
[1756730871755,1.22013,109100.0,109080.0,1.23628887]
[1756730871756,0.8812,109100.0,109080.0,1.23628887]
[1756730871957,0.0835,109100.0,109090.0,0.68449431]
[1756730872149,0.0835,109100.0,109090.0,1.06449431]
[1756730873657,0.0835,109100.0,109090.0,1.06549431]
[1756730874367,0.0835,109100.0,109090.0,1.13104771]
[1756730875163,0.0835,109100.0,109090.0,1.13204771]
[1756730875465,0.04666,109100.0,109090.0,1.13204771]
[1756730876252,0.0835,109100.0,109090.0,1.13204771]
[1756730876452,0.04666,109100.0,109090.0,1.13204771]
[1756730876652,0.02298,109100.0,109090.0,1.13204771]
[1756730877665,0.05982,109100.0,109090.0,1.13204771]
[1756730877966,0.02298,109100.0,109090.0,1.13204771]
[1756730878767,0.02298,109100.0,109090.0,0.8924034]
[1756730878972,0.0835,109100.0,109090.0,0.8924034]
[1756730879771,0.04666,109100.0,109090.0,0.8924034]
[1756730880371,0.0835,109100.0,109090.0,0.8924034]
[1756730880869,0.04666,109100.0,109090.0,0.5124034]
[1756730881070,1.28934,109110.0,109100.0,0.08405]
[1756730881668,0.4443,109110.0,109100.0,0.08405]
[1756730881869,1.25214,109110.0,109100.0,0.32369431]
[1756730882067,0.89134,109110.0,109100.0,0.32369431]
[1756730882470,0.92818,109110.0,109100.0,0.32369431]
[1756730882669,0.92818,109110.0,109100.0,0.08405]
[1756730883069,1.16782431,109110.0,109100.0,0.08405]
[1756730884475,1.52862431,109110.0,109100.0,0.08405]
[1756730884768,1.16782431,109110.0,109100.0,0.08405]
[1756730885272,0.92866,109110.0,109100.0,0.08405]
[1756730885970,1.28946,109110.0,109100.0,0.08405]
[1756730886177,1.52910431,109110.0,109100.0,0.08405]
[1756730887078,1.52910431,109110.0,109100.0,0.04657]
[1756730888480,0.08155,109100.0,109090.0,0.1508234]
[1756730888674,0.69604431,109100.0,109090.0,0.1134134]
[1756730888875,0.4564,109100.0,109090.0,0.04786]
[1756730889174,0.08155,109100.0,109090.0,0.08527]
[1756730889372,0.32119431,109100.0,109090.0,0.08527]
[1756730889879,0.08155,109100.0,109090.0,0.08527]
[1756730890080,0.32119431,109100.0,109090.0,0.08527]
[1756730890579,0.32119431,109100.0,109090.0,0.68571431]
[1756730890580,0.08155,109100.0,109090.0,0.68571431]
[1756730890772,0.08155,109100.0,109090.0,0.75126771]
[1756730891182,0.08155,109100.0,109090.0,0.1508234]
[1756730891375,0.08155,109100.0,109090.0,0.08627]
[1756730891981,0.8788,109110.0,109090.0,1.26671431]
[1756730892173,0.92647,109110.0,109100.0,0.68471431]
[1756730892373,0.08155,109110.0,109100.0,0.68471431]
[1756730892868,0.08155,109110.0,109100.0,0.44507]
[1756730894680,0.08155,109110.0,109100.0,0.5106234]
[1756730895081,0.68199431,109110.0,109100.0,0.1498234]
[1756730895379,0.32119431,109110.0,109100.0,0.08427]
[1756730895572,0.68199431,109110.0,109100.0,0.08427]
[1756730897188,0.68199431,109110.0,109100.0,0.04686]
[1756730897582,0.68199431,109110.0,109100.0,0.02338]
[1756730897883,0.08155,109100.0,109090.0,0.5106234]
[1756730898083,0.08155,109100.0,109090.0,0.8206234]
[1756730898281,0.08155,109100.0,109090.0,0.4598234]
[1756730899389,0.08155,109100.0,109090.0,0.4608234]
[1756730900184,0.08155,109100.0,109090.0,0.1508234]
[1756730900485,0.32119431,109100.0,109090.0,0.1508234]
[1756730901485,0.32119431,109100.0,109090.0,0.1518234]
[1756730902188,0.32119431,109100.0,109090.0,0.5318234]
[1756730909179,0.87716,109110.0,109090.0,1.09485771]
[1756730909384,1.16447431,109110.0,109100.0,0.08427]
[1756730909981,0.08155,109110.0,109100.0,0.70454097]
[1756730910585,0.08155,109110.0,109100.0,0.46489666]
[1756730910778,0.32119431,109110.0,109100.0,0.46489666]
[1756730911089,0.68199431,109110.0,109100.0,0.46489666]
[1756730912189,0.68199431,109110.0,109100.0,0.10489666]
[1756730914293,0.70222367,109110.0,109100.0,0.10489666]
[1756730914690,0.38407,109110.0,109100.0,0.66840097]
[1756730914885,0.44284,109120.0,109110.0,0.03441]
[1756730915088,0.44284,109120.0,109110.0,0.70227431]
[1756730915490,0.02418,109120.0,109110.0,1.06307431]
[1756730915790,1.2864,109130.0,109120.0,0.08263]
[1756730915993,0.76102449,109130.0,109120.0,0.34252227]
[1756730916192,0.40896,109130.0,109120.0,0.66252227]
[1756730916385,0.44356,109130.0,109120.0,0.66252227]
[1756730916692,0.44356,109130.0,109120.0,0.42287796]
[1756730917184,0.68320431,109130.0,109120.0,0.10287796]
[1756730919186,0.68320431,109130.0,109120.0,0.10387796]
[1756730919692,0.32240431,109130.0,109120.0,0.10387796]
[1756730919994,0.44356,109130.0,109120.0,0.10287796]
[1756730920490,0.44356,109130.0,109120.0,0.11216535]
[1756730923393,0.68320431,109130.0,109120.0,0.11216535]
[1756730923590,0.44356,109130.0,109120.0,0.11216535]
[1756730924689,0.68320431,109130.0,109120.0,0.11216535]
[1756730925794,0.32240431,109130.0,109120.0,0.11216535]
[1756730925998,0.68320431,109130.0,109120.0,0.11216535]
[1756730929301,0.68320431,109130.0,109120.0,0.07775535]
[1756730929697,0.68320431,109130.0,109120.0,0.11216535]
[1756730929892,0.32240431,109130.0,109120.0,0.11216535]
[1756730930600,0.08276,109130.0,109120.0,0.11216535]
[1756730933305,0.32240431,109130.0,109120.0,0.11216535]
[1756730933604,0.32240431,109130.0,109120.0,0.07775535]
[1756730933797,0.68303312,109130.0,109120.0,0.11216535]
[1756730939607,1.31303312,109130.0,109120.0,0.02024796]
[1756730939808,0.69338881,109130.0,109120.0,0.02024796]
[1756730940115,0.08276,109120.0,109110.0,0.22245759]
[1756730940410,0.08276,109120.0,109110.0,0.8421019]
[1756730940797,0.08276,109120.0,109110.0,1.2029019]
[1756730941403,0.08276,109120.0,109110.0,1.21201776]
[1756730941807,0.08276,109120.0,109110.0,1.21301776]
[1756730942811,0.08276,109120.0,109110.0,1.46301776]
[1756730943012,0.08276,109120.0,109110.0,1.22437345]
[1756730943314,0.08276,109120.0,109110.0,1.46401776]
[1756730943806,0.04816,109120.0,109110.0,1.46401776]
[1756730944009,0.04816,109130.0,109120.0,0.08263]
[1756730944316,0.02418,109130.0,109120.0,1.07900228]
[1756730944815,0.02418,109130.0,109120.0,1.32900228]
[1756730945121,0.08193,109140.0,109130.0,0.08261]
[1756730945418,0.08193,109140.0,109130.0,1.03305431]
[1756730946521,0.08193,109140.0,109130.0,0.79341]
[1756730946717,0.08193,109140.0,109130.0,1.03305431]
[1756730947919,0.08393,109140.0,109130.0,1.03305431]
[1756730948618,0.02482,109140.0,109130.0,1.03305431]
[1756730948818,1.52390431,109150.0,109140.0,0.03521]
[1756730949017,1.52390431,109150.0,109140.0,0.44261]
[1756730949018,0.75318,109150.0,109140.0,0.44261]
[1756730949223,0.44318,109150.0,109140.0,0.10261]
[1756730949919,0.08238,109150.0,109140.0,0.10261]
[1756730950114,0.44318,109150.0,109140.0,0.10261]
[1756730950817,0.44318,109150.0,109140.0,0.64225431]
[1756730951016,0.04733,109150.0,109140.0,1.00305431]
[1756730951615,0.08238,109150.0,109140.0,1.00305431]
[1756730952359,0.08238,109150.0,109140.0,0.40261]
[1756730952525,0.32202431,109150.0,109140.0,0.40261]
[1756730952712,0.94714431,109150.0,109140.0,0.0474]
[1756730952920,0.08238,109140.0,109130.0,0.1033303]
[1756730953122,0.32202431,109140.0,109130.0,0.4281203]
[1756730953518,0.32202431,109140.0,109130.0,0.1033303]
[1756730953719,0.32202431,109140.0,109130.0,0.0681203]
[1756730953917,0.32202431,109140.0,109130.0,0.1033303]
[1756730954123,0.08238,109140.0,109130.0,0.1033303]
[1756730954527,0.08238,109140.0,109130.0,0.1043303]
[1756730954920,0.08238,109140.0,109130.0,0.1053303]
[1756730955526,0.44318,109140.0,109130.0,0.1053303]
[1756730955734,0.68282431,109140.0,109130.0,0.1053303]
[1756730956724,0.68282431,109140.0,109130.0,0.0701203]
[1756730956920,0.68282431,109140.0,109130.0,0.0468003]
[1756730957121,0.68282431,109140.0,109130.0,0.1053303]
[1756730958630,0.44318,109140.0,109130.0,0.1053303]
[1756730958821,0.68282431,109140.0,109130.0,0.1053303]
[1756730960929,0.44318,109140.0,109130.0,0.1053303]
[1756730961128,0.68282431,109140.0,109130.0,0.1053303]
[1756730961329,0.44318,109140.0,109130.0,0.1053303]
[1756730961529,0.68282431,109140.0,109130.0,0.1053303]
[1756730962022,0.68282431,109140.0,109130.0,0.0701203]
[1756730962622,0.68282431,109140.0,109130.0,0.1053303]
[1756730962927,0.68282431,109140.0,109130.0,0.0227203]
[1756730963333,0.68282431,109140.0,109130.0,0.0468003]
[1756730963630,0.68282431,109140.0,109130.0,0.0701203]
[1756730964227,0.68282431,109140.0,109130.0,0.002]
[1756730964820,1.19266833,109140.0,109130.0,0.002]
[1756730965027,1.79398402,109140.0,109130.0,0.002]
[1756730965336,0.93282431,109140.0,109130.0,0.0494]
[1756730965526,1.41298431,109140.0,109130.0,0.0494]
[1756730965832,1.77378431,109140.0,109130.0,0.0494]
[1756730966433,1.77378431,109140.0,109130.0,0.002]
[1756730969335,2.36342862,109140.0,109120.0,0.02037457]
[1756730969632,0.68282431,109130.0,109120.0,0.06777457]
[1756730970735,0.68282431,109130.0,109120.0,0.06977457]
[1756730970935,0.68282431,109130.0,109120.0,0.07177457]
[1756730971231,0.68282431,109130.0,109120.0,0.10698457]
[1756730971831,0.68282431,109130.0,109120.0,0.07177457]
[1756730972033,0.68282431,109130.0,109120.0,0.04845457]
[1756730972229,0.68282431,109130.0,109120.0,0.07177457]
[1756730972534,0.68282431,109130.0,109120.0,0.10698457]
[1756730972732,0.44318,109130.0,109120.0,0.10698457]
[1756730972928,0.9243,109130.0,109120.0,0.10598457]
[1756730973124,0.08238,109130.0,109120.0,0.10598457]
[1756730973325,0.92438,109130.0,109120.0,0.10598457]
[1756730973531,0.08238,109130.0,109120.0,0.10598457]
[1756730974633,0.32202431,109130.0,109120.0,0.10598457]
[1756730976039,0.32202431,109130.0,109120.0,0.07077457]
[1756730976632,0.32202431,109130.0,109120.0,0.04745457]
[1756730976837,0.32202431,109130.0,109120.0,0.02337457]
[1756730977233,0.32202431,109130.0,109120.0,0.06881457]
[1756730977537,1.16402431,109130.0,109120.0,0.06881457]
[1756730977737,1.52482431,109130.0,109120.0,0.06881457]
[1756730978038,1.52482431,109130.0,109120.0,0.06781457]
[1756730978234,1.52582431,109130.0,109120.0,0.06581457]
[1756730981240,1.52582431,109130.0,109120.0,0.02037457]
[1756730984037,1.52582431,109130.0,109120.0,0.06581457]
[1756730984237,1.52582431,109130.0,109120.0,0.02037457]
[1756730984643,0.03605,109120.0,109110.0,0.55518345]
[1756730984840,0.32087431,109120.0,109110.0,0.47894345]
[1756730985040,0.68167431,109120.0,109110.0,0.41339005]
[1756730985344,0.68167431,109120.0,109110.0,0.08339005]
[1756730985546,0.68167431,109120.0,109100.0,0.05698666]
[1756730985743,0.32087431,109110.0,109100.0,0.46162006]
[1756730986042,1.16195431,109110.0,109100.0,0.47098949]
[1756730986243,1.16195431,109110.0,109100.0,0.44179609]
[1756730987940,1.16195431,109110.0,109100.0,0.44379609]
[1756730988247,1.16195431,109110.0,109100.0,0.44579609]
[1756730988442,1.16195431,109110.0,109100.0,0.40943609]
[1756730988836,1.52275431,109110.0,109100.0,0.40943609]
[1756730989246,1.16195431,109110.0,109100.0,0.40943609]
[1756730993057,1.52275431,109110.0,109100.0,0.40943609]
[1756730993244,0.68167431,109110.0,109100.0,0.44579609]
[1756730993449,0.92235,109110.0,109100.0,0.80659609]
[1756730993655,0.92235,109110.0,109100.0,0.44579609]
[1756730995654,1.16199431,109110.0,109100.0,0.44579609]
[1756730996158,0.32087431,109110.0,109100.0,0.44579609]
[1756730996455,1.16199431,109110.0,109100.0,0.44579609]
[1756730998359,0.08123,109110.0,109100.0,0.44579609]
[1756730998550,1.16199431,109110.0,109100.0,0.44579609]
[1756731000056,1.16203431,109110.0,109100.0,0.44579609]
[1756731000356,1.16203431,109110.0,109100.0,0.40943609]
[1756731000657,1.16203431,109110.0,109100.0,0.44579609]
[1756731003458,1.52283431,109110.0,109100.0,0.07943609]
[1756731003761,1.52283431,109110.0,109100.0,0.03399609]
[1756731004058,1.52283431,109110.0,109100.0,0.02462666]
[1756731004255,2.01247862,109110.0,109100.0,0.02462666]
[1756731004455,1.77283431,109110.0,109100.0,0.02462666]
[1756731004957,1.77283431,109110.0,109100.0,0.02262666]
[1756731005352,1.77283431,109110.0,109100.0,0.02062666]
[1756731005559,1.77383431,109110.0,109100.0,0.02062666]
[1756731006161,1.41303431,109110.0,109100.0,0.06848666]
[1756731006858,0.57187431,109110.0,109100.0,0.06848666]
[1756731007058,0.92339,109110.0,109100.0,0.67274188]
[1756731007556,0.08223,109110.0,109100.0,0.43309757]
[1756731007762,0.92339,109110.0,109100.0,1.03354188]
[1756731008358,0.92339,109110.0,109100.0,0.79389757]
[1756731008554,0.92339,109110.0,109100.0,0.43309757]
[1756731008755,0.92339,109110.0,109100.0,0.79389757]
[1756731008953,0.92339,109110.0,109100.0,0.43309757]
[1756731009162,0.92239,109110.0,109100.0,0.43309757]
[1756731009355,0.92239,109110.0,109100.0,0.43509757]
[1756731009551,1.16203431,109110.0,109100.0,0.39964757]
[1756731009956,1.16203431,109110.0,109100.0,0.43509757]
[1756731010263,0.08123,109110.0,109100.0,1.03554188]
[1756731010563,0.92243,109120.0,109110.0,0.08331]
[1756731010763,0.92243,109120.0,109110.0,1.00375431]
[1756731011065,0.08127,109120.0,109110.0,1.01375431]
[1756731011261,0.08127,109120.0,109110.0,0.65295431]
[1756731012159,0.08227,109120.0,109110.0,0.65295431]
[1756731012458,0.08227,109120.0,109110.0,1.01375431]
[1756731013064,0.04775,109120.0,109110.0,1.26375431]
[1756731013356,0.08227,109120.0,109110.0,1.32930771]
[1756731013759,0.08227,109120.0,109110.0,0.96850771]
[1756731014360,0.08227,109120.0,109110.0,0.96950771]
[1756731014562,0.08227,109120.0,109110.0,1.33030771]
[1756731014763,0.08227,109120.0,109110.0,1.40244053]
[1756731015061,0.08127,109120.0,109110.0,1.40344053]
[1756731016059,0.08127,109120.0,109110.0,1.04264053]
[1756731016265,0.08127,109120.0,109110.0,0.80299622]
[1756731016455,0.32091431,109120.0,109110.0,0.22299622]
[1756731016657,0.32091431,109120.0,109110.0,0.18754622]
[1756731016860,0.93171431,109120.0,109110.0,0.09880282]
[1756731017059,1.26171431,109120.0,109110.0,0.07413282]
[1756731017562,1.28194001,109120.0,109110.0,0.002]
[1756731017763,1.29126559,109120.0,109110.0,0.002]
[1756731017963,1.28194001,109120.0,109110.0,0.002]
[1756731018163,0.95194001,109120.0,109110.0,0.001]
[1756731018358,0.95394001,109120.0,109100.0,0.02978757]
[1756731018560,1.52283431,109110.0,109100.0,0.07764757]
[1756731019653,1.52283431,109110.0,109100.0,0.14320097]
[1756731020165,1.52383431,109110.0,109100.0,0.07764757]
[1756731021656,0.44307,109110.0,109100.0,0.11309757]
[1756731021861,0.04775,109110.0,109100.0,1.28354188]
[1756731022062,0.001,109110.0,109100.0,1.29720188]
[1756731022262,0.001,109110.0,109100.0,1.36275528]
[1756731022956,0.03552,109110.0,109100.0,1.34909528]
[1756731023164,0.03452,109110.0,109100.0,1.34909528]
[1756731023364,0.03452,109110.0,109100.0,1.35009528]
[1756731023663,0.04675,109110.0,109100.0,1.35009528]
[1756731024863,0.86475,109120.0,109110.0,0.03545]
[1756731025069,0.92239,109120.0,109110.0,1.00375431]
[1756731025260,0.08127,109120.0,109110.0,1.00375431]
[1756731025661,0.08127,109120.0,109110.0,0.76411]
[1756731025864,0.04675,109120.0,109110.0,1.00375431]
[1756731026167,0.001,109120.0,109110.0,0.96830431]
[1756731026770,0.001,109120.0,109110.0,1.00375431]
[1756731028570,0.001,109120.0,109110.0,1.84483431]
[1756731028771,0.87564,109130.0,109110.0,1.80938431]
[1756731029070,0.92239,109130.0,109120.0,0.1324504]
[1756731029269,0.92239,109130.0,109120.0,0.4524504]
[1756731030372,0.92235,109130.0,109120.0,0.4724504]
[1756731031065,0.92235,109130.0,109120.0,0.1324504]
[1756731031265,1.28315,109130.0,109120.0,0.1324504]
[1756731031463,1.52279431,109130.0,109120.0,0.1324504]
[1756731032164,1.52279431,109130.0,109120.0,0.1334504]
[1756731032365,1.52279431,109130.0,109120.0,0.1344504]
[1756731032672,1.52379431,109130.0,109120.0,0.1334504]
[1756731034477,1.52379431,109130.0,109120.0,0.1324504]
[1756731035468,1.16299431,109130.0,109120.0,0.1324504]
[1756731035668,0.08227,109130.0,109120.0,0.4624504]
[1756731035871,0.04775,109130.0,109120.0,1.30375431]
[1756731036071,0.04775,109130.0,109120.0,1.36930771]
[1756731036669,0.02463,109130.0,109120.0,1.36930771]
[1756731037270,0.001,109130.0,109120.0,2.21034771]
[1756731037472,0.03711,109140.0,109130.0,0.03543]
[1756731037665,0.08562,109140.0,109130.0,0.83314653]
[1756731037865,0.08562,109140.0,109130.0,1.07279084]
[1756731038473,0.08562,109140.0,109130.0,0.83314653]
[1756731038673,0.08562,109140.0,109130.0,1.07279084]
[1756731039074,0.08562,109140.0,109130.0,1.07379084]
[1756731039579,0.08562,109140.0,109130.0,0.71399084]
[1756731040278,0.08562,109140.0,109130.0,0.47434653]
[1756731041679,0.08562,109140.0,109130.0,0.83514653]
[1756731042278,0.08562,109140.0,109130.0,1.07479084]
[1756731042978,0.08562,109140.0,109130.0,0.71399084]
[1756731043969,0.08562,109140.0,109130.0,0.66487431]
[1756731044173,0.08562,109140.0,109130.0,0.42523]
[1756731046780,0.08562,109140.0,109130.0,0.66487431]
[1756731047781,0.08562,109140.0,109130.0,0.42523]
[1756731048280,0.68606431,109140.0,109130.0,0.42523]
[1756731049080,0.08562,109140.0,109130.0,0.78603]
[1756731049282,0.08562,109140.0,109130.0,0.42523]
[1756731049482,0.04851,109140.0,109130.0,0.42523]
[1756731049877,0.08562,109140.0,109130.0,0.42523]
[1756731051084,0.08562,109140.0,109130.0,0.47429867]
[1756731052081,0.04851,109140.0,109130.0,1.07474298]
[1756731052875,0.08562,109140.0,109130.0,0.83509867]
[1756731053089,0.08562,109140.0,109130.0,0.71394298]
[1756731053285,0.04851,109140.0,109130.0,0.71394298]
[1756731053789,0.08562,109140.0,109130.0,0.71394298]
[1756731054382,0.04851,109140.0,109130.0,1.07474298]
[1756731055784,0.08562,109140.0,109130.0,1.07474298]
[1756731055984,0.08562,109140.0,109130.0,0.71394298]
[1756731056389,0.08562,109140.0,109130.0,0.47429867]
[1756731056593,0.08562,109140.0,109130.0,0.71394298]
[1756731057488,0.32526431,109140.0,109130.0,0.47429867]
[1756731057684,0.93606431,109140.0,109130.0,0.13429867]
[1756731058095,0.93606431,109140.0,109130.0,0.08523]
[1756731058290,0.93606431,109140.0,109130.0,0.05106867]